fUSD/lending_fUSD_20251023
["ID","MTS","AMOUNT","RATE_DAILY","PERIOD"]
[392132515,1761195074581,-152.379659,0.00045,10]
[392132516,1761195074591,-151.0,0.00045,120]
[392132517,1761195074601,-151.0,0.00045,120]
[392132518,1761195074612,-151.0,0.00045,120]
[392132519,1761195074622,-151.0,0.00045,120]
[392132520,1761195074634,-151.0,0.00045,120]
[392132521,1761195074646,-151.0,0.00045,120]
[392132522,1761195074655,-151.0,0.00045,120]
[392132523,1761195074665,-151.0,0.00045,120]
[392132524,1761195074674,-151.0,0.00045,120]
[392132525,1761195074684,-500.0,0.00045,120]
[392132526,1761195074693,-200.0,0.00045,120]
[392132527,1761195074704,-153.013734,0.00045,120]
[392132528,1761195074714,-181.592387,0.00045,120]
[392132529,1761195074723,-151.676111,0.00045,120]
[392132530,1761195074733,-151.0,0.00045,120]
[392132531,1761195074743,-151.0,0.00045,120]
[392132532,1761195074752,-151.0,0.00045,120]
[392132533,1761195074762,-151.0,0.00045,120]
[392132534,1761195074771,-251.305449,0.00045,120]
[392132535,1761195074781,-1038.486206,0.00045,120]
[392132536,1761195074790,-151.0,0.00045,120]
[392132537,1761195074800,-151.0,0.00045,120]
[392132538,1761195074809,-151.0,0.00045,120]
[392132539,1761195074819,-151.0,0.00045,120]
[392132540,1761195074829,-151.0,0.00045,120]
[392132541,1761195074839,-151.0,0.00045,120]
[392132542,1761195074850,-151.0,0.00045,120]
[392132543,1761195074860,-151.0,0.00045,120]
[392132544,1761195074869,-161.398088,0.00045,120]
[392132545,1761195074879,-151.0,0.00045,120]
[392132546,1761195074888,-151.0,0.00045,120]
[392132547,1761195074901,-151.0,0.00045,120]
[392132548,1761195074910,-165.984764,0.00045,120]
[392132549,1761195074920,-151.0,0.00045,120]
[392132550,1761195074929,-231.664832,0.00045,120]
[392132551,1761195074938,-151.0,0.00045,120]
[392132552,1761195074947,-151.0,0.00045,120]
[392132553,1761195074956,-151.0,0.00045,120]
[392132554,1761195074966,-151.0,0.00045,120]
[392132555,1761195074976,-151.0,0.00045,120]
[392132556,1761195074985,-151.0,0.00045,120]
[392132557,1761195074994,-151.0,0.00045,120]
[392132558,1761195075004,-151.0,0.00045,120]
[392132559,1761195075013,-226.393837,0.00045,120]
[392132560,1761195075023,-151.0,0.00045,120]
[392132561,1761195075032,-151.0,0.00045,120]
[392132562,1761195075041,-151.000001,0.00045,120]
[392132563,1761195075050,-1000000.0,0.00045,120]
[392132564,1761195075060,-151.0,0.00045,120]
[392132565,1761195075070,-1000000.0,0.00045,120]
[392132566,1761195075080,-1000000.0,0.00045,120]
[392132567,1761195075091,-151.0,0.00045,120]
[392132568,1761195075101,-151.0,0.00045,120]
[392132569,1761195075110,-298.763832,0.00045,120]
[392132570,1761195075120,-339745.0,0.00045,120]
[392132571,1761195075130,-151.0,0.00045,120]
[392132572,1761195075140,-151.0,0.00045,120]
[392132573,1761195075149,-1000000.0,0.00045,120]
[392132574,1761195075159,-1000000.0,0.00045,120]
[392132575,1761195075168,-1000000.0,0.00045,120]
[392132576,1761195075177,-151.0,0.00045,120]
[392132577,1761195075187,-151.0,0.00045,120]
[392132578,1761195075196,-53826.0,0.00045,120]
[392132579,1761195075206,-151.0,0.00045,120]
[392132580,1761195075216,-228.787414,0.00045,120]
[392132581,1761195075226,-151.0,0.00045,120]
[392132582,1761195075237,-151.0,0.00045,120]
[392132583,1761195075249,-151.0,0.00045,120]
[392132584,1761195075259,-151.0,0.00045,120]
[392132585,1761195075270,-151.0,0.00045,120]
[392132586,1761195075281,-151.0,0.00045,120]
[392132587,1761195075293,-151.0,0.00045,120]
[392132588,1761195075304,-151.0,0.00045,120]
[392132589,1761195075313,-151.0,0.00045,120]
[392132590,1761195075323,-151.0,0.00045,120]
[392132591,1761195075332,-151.0,0.00045,120]
[392132592,1761195075341,-151.0,0.00045,120]
[392132593,1761195075351,-151.0,0.00045,120]
[392132594,1761195075361,-151.0,0.00045,120]
[392132595,1761195075370,-151.0,0.00045,120]
[392132596,1761195075379,-296.729128,0.00045,120]
[392132597,1761195075389,-151.0,0.00045,60]
[392132598,1761195075398,-151.0,0.00045,120]
[392132599,1761195075407,-151.0,0.00045,120]
[392132600,1761195075416,-248.871608,0.00045,120]
[392132601,1761195075425,-198.812489,0.00045,120]
[392132602,1761195075435,-151.0,0.00045,120]
[392132603,1761195075444,-151.0,0.00045,120]
[392132604,1761195075522,-151.0,0.00045,120]
[392132605,1761195075532,-151.0,0.00045,120]
[392132606,1761195075541,-151.0,0.00045,120]
[392132607,1761195075551,-151.0,0.00045,120]
[392132608,1761195075560,-151.0,0.00045,120]
[392132609,1761195075571,-151.0,0.00045,120]
[392132610,1761195075580,-151.0,0.00045,120]
[392132611,1761195075589,-151.0,0.00045,120]
[392132612,1761195075600,-211.28212,0.00045,120]
[392132613,1761195075610,-151.0,0.00045,120]
[392132614,1761195075620,-300.0,0.00045,5]
[392132615,1761195075631,-300.0,0.00045,5]
[392132616,1761195075641,-150.0,0.00045,60]
[392132617,1761195075651,-151.0,0.00045,30]
[392132618,1761195075660,-151.0,0.00045,30]
[392132619,1761195075670,-177.020248,0.00045,120]
[392132620,1761195075679,-177.020248,0.00045,120]
[392132621,1761195075689,-151.0,0.00045,30]
[392132622,1761195075698,-177.020248,0.00045,120]
[392132623,1761195075708,-151.0,0.00045,30]
[392132624,1761195075717,-177.020248,0.00045,120]
[392132625,1761195075727,-151.0,0.00045,30]
[392132626,1761195075736,-177.020248,0.00045,120]
[392132627,1761195075745,-151.0,0.00045,30]
[392132628,1761195075754,-177.020248,0.00045,120]
[392132629,1761195075764,-151.0,0.00045,30]
[392132630,1761195075774,-177.020248,0.00045,120]
[392132631,1761195075784,-151.0,0.00045,30]
[392132632,1761195075795,-177.020248,0.00045,120]
[392132633,1761195075804,-151.0,0.00045,30]
[392132634,1761195075815,-151.0,0.00045,30]
[392132635,1761195075825,-177.020248,0.00045,120]
[392132636,1761195075834,-177.020248,0.00045,120]
[392132637,1761195075845,-151.0,0.00045,30]
[392132638,1761195075856,-177.020248,0.00045,120]
[392132639,1761195075867,-151.0,0.00045,30]
[392132640,1761195075877,-177.020248,0.00045,120]
[392132641,1761195075887,-225.264214,0.00045,120]
[392132642,1761195075896,-225.264214,0.00045,120]
[392132643,1761195075906,-225.264214,0.00045,120]
[392132644,1761195075915,-177.020248,0.00045,120]
[392132645,1761195075924,-177.020248,0.00045,120]
[392132646,1761195075934,-225.264214,0.00045,120]
[392132647,1761195075944,-177.020248,0.00045,120]
[392132648,1761195075954,-225.264214,0.00045,120]
[392132649,1761195075964,-177.020248,0.00045,120]
[392132650,1761195075976,-225.264214,0.00045,120]
[392132651,1761195075986,-177.020248,0.00045,120]
[392132652,1761195075997,-225.264214,0.00045,120]
[392132653,1761195076007,-1091.0,0.00045,30]
[392132654,1761195076018,-500.0,0.00045,16]
[392132655,1761195076028,-500.0,0.00045,16]
[392132656,1761195076040,-500.0,0.00045,16]
[392132657,1761195076050,-500.0,0.00045,16]
[392132658,1761195076061,-500.0,0.00045,16]
[392132659,1761195076071,-500.0,0.00045,16]
[392132660,1761195076084,-500.0,0.00045,16]
[392132661,1761195076103,-500.0,0.00045,16]
[392132662,1761195076122,-500.0,0.00045,32]
[392132663,1761195076141,-500.0,0.00045,16]
[392132664,1761195076157,-500.0,0.00045,16]
[392132665,1761195076175,-500.0,0.00045,16]
[392132666,1761195076194,-500.0,0.00045,16]
[392132667,1761195076212,-500.0,0.00045,16]
[392132668,1761195076229,-500.0,0.00045,16]
[392132669,1761195076248,-500.0,0.00045,16]
[392132670,1761195076266,-500.0,0.00045,16]
[392132671,1761195076283,-500.0,0.00045,32]
[392132672,1761195076299,-504.84439557,0.00045009,2]
[392132673,1761195076314,-1000000.0,0.0004501,120]
[392132674,1761195076329,-151.0,0.0004501,120]
[392132675,1761195076345,-151.0,0.0004501,120]
[392132676,1761195076362,-151.0,0.0004501,120]
[392132677,1761195076377,-151.0,0.0004501,120]
[392132678,1761195076392,-385.98565893,0.00045019,120]
[392132679,1761195076407,-163.11915331,0.00045019,15]
[392132680,1761195076423,-170.93958348,0.00045019,120]
[392132681,1761195076438,-500.0,0.00045019,120]
[392132682,1761195076453,-429.8319227,0.00045019,120]
[392132683,1761195076468,-500.0,0.00045019,120]
[392132684,1761195076484,-396.10149746,0.00045019,120]
[392132685,1761195076502,-1000000.0,0.0004502,120]
[392132686,1761195076518,-189.98449062,0.0004503,120]
[392132687,1761195076533,-1000000.0,0.0004503,120]
[392132688,1761195076548,-1000000.0,0.0004504,120]
[392132689,1761195076563,-300000.0,0.0004505,120]
[392132690,1761195076578,-500.0,0.00045137,30]
[392132691,1761195076594,-552.91850809,0.0004515,120]
[392132692,1761195076608,-364.71110922,0.00045232,19]
[392132693,1761195076622,-369.0,0.00045317,120]
[392132694,1761195076637,-552.91850809,0.000454,120]
[392132695,1761195076651,-192.18930112,0.000454,15]
[392132696,1761195076666,-300.0,0.000454,17]
[392132697,1761195076680,-1450.7218424,0.000454,2]
[392132698,1761195076695,-500.0,0.00045411,30]
[392132699,1761195076710,-1000.0,0.00045445,2]
[392132700,1761195076724,-589.0,0.0004545,30]
[392132701,1761195076738,-400.0,0.0004547,3]
[392132702,1761195076753,-200.0,0.0004547,3]
[392132703,1761195076768,-500.0,0.00045473,10]
[392132704,1761195076782,-408970.0349294,0.000455,120]
[392132705,1761195076797,-999.71024088,0.000455,120]
[392132706,1761195076811,-933603.0,0.000455,120]
[392132707,1761195076826,-500000.0,0.000455,120]
[392132708,1761195076840,-1000000.0,0.000455,120]
[392132709,1761195076854,-1000000.0,0.000455,120]
[392132710,1761195076868,-1000000.0,0.000455,120]
[392132711,1761195076882,-1000000.0,0.000455,120]
[392132712,1761195076896,-10788.48,0.000455,7]
[392132713,1761195076911,-755.32,0.000455,7]
[392132714,1761195076923,-2238.86,0.000455,7]
[392132715,1761195076938,-1170.16,0.000455,7]
[392132716,1761195076953,-470.59468312,0.000455,30]
[392132717,1761195077060,-162.68138203,0.000455,30]
[392132718,1761195077073,-116369.85359418,0.000455,30]
[392132719,1761195077084,-1000.0,0.00045521,10]
[392132720,1761195077094,-1263.0,0.00045532,120]
[392132721,1761195077105,-364.71110922,0.00045566,20]
[392132722,1761195077115,-3033.4553334,0.0004562,120]
[392132723,1761195077126,-177.26,0.00045638,2]
[392132724,1761195077136,-300.91,0.00045671,30]
[392132725,1761195077148,-500.0,0.00045685,30]
[392132726,1761195077159,-166.88705361,0.000457,120]
[392132727,1761195077172,-168.0,0.00045762,2]
[392132728,1761195077182,-21280.23799518,0.00045862,30]
[392132729,1761195077192,-1224.46761937,0.000459,120]
[392132730,1761195077201,-364.71110922,0.000459,21]
[392132731,1761195077211,-589.0,0.000459,30]
[392132732,1761195077219,-151.0,0.000459,25]
[392132733,1761195077229,-1450.7218424,0.000459,2]
[392132734,1761195077238,-500.0,0.00045959,30]
[392132735,1761195077247,-150.0,0.00045973,10]
[392132736,1761195077257,-541.55233275,0.00045973,8]
[392132737,1761195077266,-168.0,0.00045984,7]
[392132738,1761195077276,-1000.0,0.00046,120]
[392132739,1761195077286,-2795.36743791,0.00046,120]
[392132740,1761195077295,-1000.0,0.00046,30]
[392132741,1761195077305,-203.96309161,0.00046,30]
[392132742,1761195077316,-2168.07271371,0.00046,120]
[392132743,1761195077326,-513.90434917,0.00046,30]
[392132744,1761195077335,-914.10053798,0.00046,120]
[392132745,1761195077345,-1000000.0,0.00046,120]
[392132746,1761195077354,-1000000.0,0.00046,120]
[392132747,1761195077365,-1000000.0,0.00046,120]
[392132748,1761195077375,-1000000.0,0.00046,120]
[392132749,1761195077385,-1095501.0,0.00046,120]
[392132750,1761195077394,-451025.0,0.00046,120]
[392132751,1761195077404,-1000000.0,0.00046,120]
[392132752,1761195077414,-250.0,0.00046,30]
[392132753,1761195077424,-250.0,0.00046,30]
[392132754,1761195077433,-250.0,0.00046,30]
[392132755,1761195077442,-250.0,0.00046,30]
[392132756,1761195077453,-250.0,0.00046,30]
[392132757,1761195077464,-250.0,0.00046,30]
[392132758,1761195077474,-250.0,0.00046,30]
[392132759,1761195077484,-250.0,0.00046,30]
[392132760,1761195077499,-250.0,0.00046,30]
[392132761,1761195077509,-250.0,0.00046,30]
[392132762,1761195077518,-250.0,0.00046,30]
[392132763,1761195077529,-250.0,0.00046,30]
[392132764,1761195077538,-181.5,0.00046,30]
[392132765,1761195077547,-179.23532698,0.00046,120]
[392132766,1761195077556,-347.83918691,0.00046,120]
[392132767,1761195077566,-168796.25187174,0.00046,120]
[392132768,1761195077575,-116369.85359418,0.00046,30]
[392132769,1761195077585,-1000.0,0.00046021,10]
[392132770,1761195077594,-289.76729964,0.00046068,10]
[392132771,1761195077603,-200.0,0.00046119,2]
[392132772,1761195077612,-567.42922217,0.0004613,120]
[392132773,1761195077622,-358.04,0.00046143,2]
[392132774,1761195077631,-9855.49,0.000462,30]
[392132775,1761195077641,-500.0,0.00046205,120]
[392132776,1761195077651,-500.0,0.00046233,30]
[392132777,1761195077660,-168.0,0.00046236,2]
[392132778,1761195077669,-1000000.0,0.0004625,120]
[392132779,1761195077679,-179.0,0.000463,120]
[392132780,1761195077688,-200.0,0.00046341,120]
[392132781,1761195077698,-589.0,0.0004635,30]
[392132782,1761195077707,-161.34,0.00046352,120]
[392132783,1761195077717,-225581.88914051,0.000464,120]
[392132784,1761195077727,-1850.11588691,0.000464,120]
[392132785,1761195077736,-300.0,0.000464,16]
[392132786,1761195077746,-300.0,0.000464,16]
[392132787,1761195077755,-300.0,0.000464,16]
[392132788,1761195077766,-151.55363201,0.00046473,10]
[392132789,1761195077776,-1000000.0,0.000465,120]
[392132790,1761195077785,-1000000.0,0.000465,120]
[392132791,1761195077795,-1000000.0,0.000465,120]
[392132792,1761195077804,-518413.0,0.000465,120]
[392132793,1761195077814,-1000000.0,0.000465,120]
[392132794,1761195077823,-300000.0,0.000465,120]
[392132795,1761195077833,-970000.0,0.000465,120]
[392132796,1761195077843,-1000000.0,0.000465,120]
[392132797,1761195077854,-470.59468312,0.000465,30]
[392132798,1761195077864,-162.68138203,0.000465,30]
[392132799,1761195077873,-116369.85359418,0.000465,30]
[392132800,1761195077885,-500.0,0.00046507,30]
[392132801,1761195077895,-168.0,0.00046507,2]
[392132802,1761195077904,-201.06096354,0.00046521,10]
[392132803,1761195077915,-168.0,0.00046531,2]
[392132804,1761195077928,-896.12944921,0.00046566,30]
[392132805,1761195077938,-1500.0,0.00046568,10]
[392132806,1761195077948,-342.42546615,0.00046575,2]
[392132807,1761195077958,-2549.0,0.00046599,2]
[392132808,1761195077967,-360.138,0.00046599,2]
[392132809,1761195077977,-1184.0,0.00046599,2]
[392132810,1761195077987,-669.03403015,0.000466,120]
[392132811,1761195077996,-168.0,0.00046721,2]
[392132812,1761195078006,-925.64645296,0.000468,120]
[392132813,1761195078015,-1988.94441077,0.000469,120]
[392132814,1761195078025,-33181.38,0.000469,14]
[392132815,1761195078034,-1000.0,0.00047,120]
[392132816,1761195078044,-608.83843147,0.00047,30]
[392132817,1761195078054,-1000000.0,0.00047,120]
[392132818,1761195078064,-270.5735801,0.00047,120]
[392132819,1761195078073,-630000.0,0.00047,120]
[392132820,1761195078083,-690000.0,0.00047,120]
[392132821,1761195078092,-1000000.0,0.00047,120]
[392132822,1761195078102,-1874.17,0.00047,14]
[392132823,1761195078111,-229.51,0.00047,30]
[392132824,1761195078120,-116369.85359418,0.00047,30]
[392132825,1761195078129,-150.0,0.0004708,30]
[392132826,1761195078138,-2003.09847181,0.0004708,30]
[392132827,1761195078148,-150.0,0.0004708,30]
[392132828,1761195078157,-366.02154191,0.0004708,30]
[392132829,1761195078166,-150.0,0.0004708,30]
[392132830,1761195078176,-341.06845743,0.0004708,30]
[392132831,1761195078186,-2000.0,0.00047116,10]
[392132832,1761195078195,-163.0,0.00047121,90]
[392132833,1761195078204,-1091.0,0.0004725,30]
[392132834,1761195078214,-279.66,0.00047302,7]
[392132835,1761195078223,-9855.49,0.000474,30]
[392132836,1761195078232,-500.0,0.00047411,120]
[392132837,1761195078241,-1000.0,0.00047473,10]
[392132838,1761195078251,-1000000.0,0.000475,120]
[392132839,1761195078260,-1000000.0,0.000475,120]
[392132840,1761195078269,-603.76086893,0.000475,120]
[392132841,1761195078278,-1039.12,0.00047538,120]
[392132842,1761195078287,-419.18,0.00047551,2]
[392132843,1761195078365,-5287.17002658,0.000476,2]
[392132844,1761195078375,-2595.99345502,0.00047664,10]
[392132845,1761195078385,-200.0,0.00047673,2]
[392132846,1761195078395,-200.0,0.00047682,120]
[392132847,1761195078407,-198.0,0.00047707,120]
[392132848,1761195078416,-177.26,0.00047712,2]
[392132849,1761195078426,-790.0,0.0004777,15]
[392132850,1761195078435,-6540.16752623,0.000478,110]
[392132851,1761195078445,-2500.0,0.0004789,62]
[392132852,1761195078454,-196.0,0.000479,44]
[392132853,1761195078463,-400.0,0.0004797,3]
[392132854,1761195078473,-1000.0,0.00047999,120]
[392132855,1761195078482,-410513.72540789,0.00048,120]
[392132856,1761195078494,-1665159.0,0.00048,120]
[392132857,1761195078504,-4406.54205053,0.00048,120]
[392132858,1761195078513,-1000.0,0.00048,120]
[392132859,1761195078522,-837245.0,0.00048,120]
[392132860,1761195078531,-1000000.0,0.00048,120]
[392132861,1761195078541,-483000.0,0.00048,120]
[392132862,1761195078551,-320.2344028,0.00048,120]
[392132863,1761195078561,-10152.15862777,0.00048,120]
[392132864,1761195078659,-225.264214,0.00045,120]
[392132865,1761195078669,-2448.3986864,0.00048,120]
[392132867,1761195639804,125.56780601,0.0002,3]
[392132868,1761195639830,167.01265877,0.0002,3]
[392132869,1761195639856,309.46706161,0.0002,3]
[392132870,1761195639881,167.01265877,0.0002,3]
[392132871,1761195639907,213.20444477,0.0002,3]
[392132872,1761195639933,734.90402746,0.0002,3]
[392132873,1761195639957,282.83134261,0.0002,3]
[392132875,1761195995125,-170.221639,0.00022786,2]
[392132876,1761195995146,-300.0,0.00022885,2]
[392132877,1761195995167,-151.0,0.00022886,2]
[392132878,1761195995189,-151.0,0.00022886,2]
[392132879,1761195995210,-151.0,0.00022886,2]
[392132880,1761195995232,-151.0,0.00022886,2]
[392132881,1761195995258,-151.0,0.00022886,2]
[392132882,1761195995280,-37.75105263,0.00022886,2]
[392132883,1761196028437,288.65,0.00013699,2]
[392132886,1761196053139,-236.70212224,0.00020187,2]
[392132887,1761196154142,-51.94787776,0.00020187,2]
[392132888,1761196154162,-252.53,0.00022886,2]
[392132889,1761196154183,-151.0,0.00022886,2]
[392132890,1761196154202,-151.0,0.00022886,2]
[392132891,1761196154221,-151.0,0.00022886,2]
[392132892,1761196154241,-151.0,0.00022886,2]
[392132893,1761196154261,-151.0,0.00022886,2]
[392132894,1761196154282,-848.17,0.00022899,2]
[392132895,1761196154305,-500.0,0.00022899,2]
[392132896,1761196154325,-500.0,0.00022899,2]
[392132897,1761196154345,-503.04268844,0.000229,2]
[392132898,1761196154367,-501.9436937,0.000229,2]
[392132899,1761196154387,-508.80492831,0.000229,2]
[392132900,1761196154409,-500.0,0.000229,2]
[392132901,1761196154428,-500.0,0.000229,2]
[392132902,1761196154448,-506.18334773,0.00023448,2]
[392132903,1761196154466,-504.06852706,0.00023448,2]
[392132904,1761196154492,-848.17,0.00024105,2]
[392132905,1761196154521,151.0,0.00022886,2]
[392132906,1761196154548,151.0,0.00022886,2]
[392132907,1761196154898,164.98226236,0.00022886,2]
[392132908,1761196155237,-195.57,0.00025151,2]
[392132909,1761196155258,-848.17,0.0002531,2]
[392132910,1761196155278,-848.17,0.00026515,2]
[392132911,1761196155303,151.0,0.00022886,2]
[392132912,1761196155804,151.0,0.00022886,2]
[392132913,1761196156447,151.0,0.00022886,2]
[392132914,1761196157067,19.95759939,0.00022886,2]
[392132915,1761196157087,131.04240061,0.00022886,2]
[392132916,1761196157817,151.0,0.00022886,2]
[392132917,1761196158446,151.0,0.00022886,2]
[392132918,1761196159106,-288.65,0.00026676,2]
[392132919,1761196159165,151.0,0.00022886,2]
[392132920,1761196159820,151.0,0.00022886,2]
[392132921,1761196160479,151.0,0.00022886,2]
[392132922,1761196161179,151.0,0.00022886,2]
[392132923,1761196161759,151.0,0.00022886,2]
[392132924,1761196162452,151.0,0.00022886,2]
[392132925,1761196163096,-627.32699125,0.0002772,2]
[392132926,1761196163243,151.0,0.00022886,2]
[392132927,1761196163933,151.0,0.00022886,2]
[392132928,1761196164077,-220.84300875,0.0002772,2]
[392132929,1761196164099,-94.79877742,0.00028926,2]
[392132930,1761196164632,151.0,0.00022886,2]
[392132932,1761196192680,251.85940406,0.00026674,2]
[392132933,1761196206692,151.0,0.00022886,2]
[392132934,1761196207390,151.0,0.00022886,2]
[392132935,1761196208039,113.0444671,0.00022886,2]
[392132936,1761196208061,37.9555329,0.00022886,2]
[392132937,1761196208685,151.0,0.00022886,2]
[392132938,1761196209341,151.0,0.00022886,2]
[392132939,1761196209946,151.0,0.00022886,2]
[392132940,1761196210579,151.0,0.00022886,2]
[392132941,1761196211374,93.52205152,0.00022886,2]
[392132942,1761196224713,446.0,0.0002,3]
[392132944,1761196231935,-57.47794848,0.00022886,2]
[392132945,1761196231946,-151.0,0.00022886,2]
[392132946,1761196231955,-151.0,0.00022886,2]
[392132947,1761196231965,-151.0,0.00022886,2]
[392132948,1761196231974,-54.52205152,0.00022886,2]
[392132949,1761196231986,-96.47794848,0.00022886,2]
[392132950,1761196231995,-151.0,0.00022886,2]
[392132951,1761196232004,-151.0,0.00022886,2]
[392132952,1761196232015,-151.0,0.00022886,2]
[392132953,1761196232024,-151.0,0.00022886,2]
[392132954,1761196232034,-151.0,0.00022886,2]
[392132955,1761196232043,-0.70199752,0.00022886,2]
[392132956,1761196232054,-150.29800248,0.00022886,2]
[392132957,1761196232063,-151.0,0.00022886,2]
[392132958,1761196232072,-150.0,0.000289,2]
[392132959,1761196232082,-753.37122258,0.00028926,2]
[392132960,1761196232091,-500.0,0.00029689,2]
[392132961,1761196232270,-848.17,0.00030131,2]
[392132963,1761196232282,-848.17,0.00031336,2]
[392132964,1761196232292,-848.17,0.00032541,2]
[392132965,1761196232303,-288.65,0.00033165,2]
[392132966,1761196232312,-848.17,0.00033747,2]
[392132967,1761196232322,-848.17,0.00034952,2]
[392132968,1761196232332,-161.0,0.00036,30]
[392132969,1761196232343,-848.17,0.00036157,2]
[392132970,1761196232353,-848.17,0.00037362,2]
[392132971,1761196232363,-212.11,0.00037821,2]
[392132972,1761196232373,-848.17,0.00038568,2]
[392132973,1761196232384,-161.34,0.00039496,120]
[392132974,1761196232396,-288.65,0.00039654,2]
[392132975,1761196232405,-150.0,0.00039729,2]
[392132976,1761196232415,-500.0,0.00039772,31]
[392132977,1761196232424,-500.0,0.00039772,31]
[392132978,1761196232434,-403.99912768,0.00039772,31]
[392132979,1761196232444,-500.0,0.00039772,31]
[392132980,1761196232455,-500.0,0.00039772,31]
[392132981,1761196232465,-500.0,0.00039772,31]
[392132982,1761196232475,-500.0,0.00039772,31]
[392132983,1761196232485,-848.17,0.00039773,2]
[392132984,1761196232498,-73.80201431,0.00039917,2]
[392132985,1761196232511,-103.45798569,0.00039917,2]
[392132986,1761196232520,-448.54201431,0.00040231,30]
[392132987,1761196232534,-51.45798569,0.00040231,30]
[392132988,1761196232543,-717.31,0.00040364,120]
[392132989,1761196232553,-150.0,0.00040488,4]
[392132990,1761196232562,-150.0,0.00040488,4]
[392132991,1761196232571,-150.0,0.00040488,4]
[392132992,1761196232580,-150.51392322,0.00040488,4]
[392132993,1761196232591,-150.0,0.00040488,4]
[392132994,1761196232605,-150.0,0.00040488,4]
[392132995,1761196232615,-150.0,0.00040488,4]
[392132996,1761196232627,-150.0,0.00040488,4]
[392132997,1761196232637,-150.0,0.00040488,4]
[392132998,1761196232647,-150.0,0.00040488,4]
[392132999,1761196232658,-150.0,0.00040488,4]
[392133000,1761196232667,-150.0,0.00040488,4]
[392133001,1761196232677,-150.0,0.00040488,4]
[392133002,1761196232687,-150.0,0.00040488,4]
[392133003,1761196232696,-150.0,0.00040488,4]
[392133004,1761196232706,-150.0,0.00040488,4]
[392133005,1761196232716,-2000.0,0.000407,120]
[392133006,1761196232725,-917.538,0.000407,58]
[392133007,1761196232734,-848.17,0.00040978,2]
[392133008,1761196232744,-865.93,0.00041388,120]
[392133009,1761196232753,-848.17,0.00042183,2]
[392133010,1761196232763,-161.0,0.00043,20]
[392133011,1761196232772,-161.0,0.00043,15]
[392133012,1761196232782,-848.17,0.00043388,2]
[392133013,1761196232791,-496.0,0.0004365,30]
[392133014,1761196232801,-496.0,0.000441,30]
[392133015,1761196232810,-251.85710336,0.00044244,10]
[392133016,1761196232820,-500.0,0.00044244,10]
[392133017,1761196232829,-505.51997312,0.00044244,3]
[392133018,1761196232840,-4187.36301461,0.000443,2]
[392133019,1761196232859,-500.0,0.00039772,31]
[392133020,1761196232869,-500.0,0.00039772,31]
[392133021,1761196232878,-14979.63698539,0.000443,2]